bitfinex/quotes_BTCUSD_20240918
["timestamp","ask_amount","ask_price","bid_price","bid_amount"]
[1726703785286,23.38742599,61666.0,61665.0,0.61669]
[1726703785508,23.38742599,61666.0,61665.0,0.490336]
[1726703785739,23.38824899,61666.0,61665.0,0.504336]
[1726703786198,23.38824899,61666.0,61665.0,0.490336]
[1726703786472,23.38824899,61666.0,61665.0,0.504336]
[1726703786729,23.38824899,61666.0,61665.0,0.99172267]
[1726703786979,23.38824899,61666.0,61665.0,0.66738967]
[1726703787206,23.38824899,61666.0,61665.0,0.504336]
[1726703787466,23.38824899,61666.0,61665.0,0.33237824]
[1726703788194,23.38824899,61666.0,61665.0,0.31837824]
[1726703788705,23.55130266,61666.0,61665.0,0.31837824]
[1726703788955,23.55130266,61666.0,61665.0,0.33237824]
[1726703789180,23.55130266,61666.0,61665.0,0.31837824]
[1726703789399,23.55130266,61666.0,61665.0,0.33237824]
[1726703789633,23.55130266,61666.0,61665.0,0.31837824]
[1726703789864,23.38824899,61666.0,61665.0,0.31837824]
[1726703791013,23.38824899,61666.0,61665.0,0.33237824]
[1726703791235,23.38824899,61666.0,61665.0,0.35267663]
[1726703791464,23.38824899,61666.0,61665.0,0.33867663]
[1726703791694,23.38814899,61666.0,61665.0,0.33867663]
[1726703791933,23.38814899,61666.0,61665.0,0.51484263]
[1726703792226,23.38814899,61666.0,61665.0,0.33867663]
[1726703792480,23.38814899,61666.0,61665.0,0.50084263]
[1726703792712,23.38814899,61666.0,61665.0,0.51484263]
[1726703792938,23.38814899,61666.0,61665.0,0.81887724]
[1726703793160,23.38814899,61666.0,61665.0,0.88619458]
[1726703793656,23.38814899,61666.0,61665.0,0.35267496]
[1726703793885,23.38814899,61666.0,61665.0,0.83917396]
[1726703794118,23.38814899,61666.0,61665.0,0.83287724]
[1726703794457,0.0012,61662.0,61632.0,0.20802045]
[1726703794743,0.0012,61662.0,61611.0,0.15929998]
[1726703794744,0.03,61604.0,61599.0,0.0014544]
[1726703794956,0.1,61641.0,61586.0,0.15929998]
[1726703794957,0.22858666,61630.0,61604.0,0.02367234]
[1726703795214,0.00632766,61630.0,61606.0,0.002]
[1726703795473,0.00632766,61630.0,61604.0,0.02367234]
[1726703795474,0.00632766,61630.0,61607.0,0.38067182]
[1726703795692,0.00632766,61624.0,61607.0,0.3353255]
[1726703795905,0.3242,61639.0,61607.0,0.3353255]
[1726703795906,0.00632766,61621.0,61607.0,0.3353255]
[1726703796119,0.00632766,61618.0,61607.0,0.3353255]
[1726703796598,0.00632766,61615.0,61607.0,0.3353255]
[1726703796821,0.00632766,61611.0,61607.0,0.3353255]
[1726703797053,0.00632766,61611.0,61607.0,0.32464]
[1726703797279,0.00632766,61614.0,61607.0,0.32464]
[1726703797496,0.00632766,61611.0,61607.0,0.32464]
[1726703798188,0.00732766,61611.0,61607.0,0.32464]
[1726703798647,0.00632766,61609.0,61607.0,0.32464]
[1726703799074,0.162316,61608.0,61607.0,0.32464]
[1726703799289,0.00632766,61609.0,61607.0,0.32464]
[1726703799726,0.001,61611.0,61607.0,0.32464]
[1726703799727,0.81790966,61608.0,61607.0,0.32464]
[1726703800055,0.16865466,61604.0,61603.0,0.001644]
[1726703800077,0.00612766,61604.0,61603.0,0.001644]
[1726703800491,0.3316,61608.0,61607.0,0.31851234]
[1726703800711,0.001,61609.0,61607.0,0.31851234]
[1726703800920,0.162306,61612.0,61607.0,0.31851234]
[1726703801132,0.324604,61614.0,61607.0,0.31851234]
[1726703801364,0.162316,61608.0,61607.0,0.31851234]
[1726703801578,0.162315,61609.0,61607.0,0.31851234]
[1726703801795,0.32536967,61608.0,61607.0,0.31851234]
[1726703802009,0.65000267,61608.0,61607.0,0.31851234]
[1726703802226,1.03463567,61608.0,61607.0,0.31851234]
[1726703802929,0.2686,61607.0,61594.0,0.001648]
[1726703803152,0.16305367,61606.0,61595.0,0.97401807]
[1726703803365,0.22305367,61606.0,61595.0,0.97401807]
[1726703803582,0.06,61605.0,61595.0,0.97401807]
[1726703803838,0.22305367,61604.0,61595.0,0.97401807]
[1726703804060,0.162346,61597.0,61595.0,0.97401807]
[1726703804298,0.547051,61595.0,61594.0,0.001648]
[1726703804517,1.03480567,61595.0,61594.0,0.001648]
[1726703804721,0.71010467,61595.0,61594.0,0.001648]
[1726703804949,0.06,61590.0,61581.0,0.97401807]
[1726703805184,0.547092,61590.0,61589.0,0.97401807]
[1726703805403,0.06,61588.0,61581.0,0.97401807]
[1726703805618,0.162385,61582.0,61581.0,0.97401807]
[1726703805835,0.97497867,61582.0,61581.0,0.97401807]
[1726703806050,0.48717,61580.0,61575.0,0.01655464]
[1726703806264,0.16305367,61580.0,61574.0,0.97401807]
[1726703806498,0.162394,61579.0,61574.0,0.97066207]
[1726703806726,0.162394,61579.0,61563.0,0.04971903]
[1726703806727,0.16305367,61578.0,61575.0,0.97401807]
[1726703806933,0.162401,61576.0,61569.0,0.26015407]
[1726703807166,0.16305367,61575.0,61569.0,0.24359943]
[1726703807680,0.16305367,61575.0,61562.0,0.24359943]
[1726703807893,0.16305367,61575.0,61569.0,0.24359943]
[1726703808108,0.16305367,61575.0,61556.0,1.02404294]
[1726703808342,0.16305367,61575.0,61569.0,0.001]
[1726703808587,0.061,61576.0,61556.0,1.02404294]
[1726703808588,0.001,61576.0,61570.0,0.05382314]
[1726703808847,0.001,61576.0,61568.0,0.97446891]
[1726703809066,0.001,61576.0,61575.0,0.97446891]
[1726703809283,0.001,61576.0,61570.0,0.162416]
[1726703809516,0.0009,61576.0,61571.0,0.04363446]
[1726703809747,0.0008,61576.0,61571.0,0.04363446]
[1726703810243,0.001,61575.0,61572.0,0.1]
[1726703810689,0.001,61575.0,61574.0,0.162406]
[1726703810905,0.001,61575.0,61574.0,0.587218]
[1726703811124,0.0009,61576.0,61575.0,0.89951]
[1726703811349,0.0009,61576.0,61575.0,1.75581213]
[1726703811562,0.06,61604.0,61575.0,1.75581213]
[1726703811563,0.24360338,61592.0,61585.0,0.487128]
[1726703811776,1.03420785,61607.0,61587.0,0.16237]
[1726703812001,1.03420785,61607.0,61588.0,0.32474]
[1726703812002,0.16305367,61606.0,61588.0,0.32474]
[1726703812213,0.16305367,61606.0,61589.0,0.97420785]
[1726703812427,0.16305367,61606.0,61590.0,0.32473]
[1726703812877,0.06,61613.0,61596.0,0.97420785]
[1726703813117,0.34998393,61628.0,61597.0,0.32469]
[1726703813118,0.03,61607.0,61597.0,0.32469]
[1726703813592,0.03,61598.0,61597.0,0.32469]
[1726703813832,0.22305367,61598.0,61597.0,0.32469]
[1726703814508,0.16305367,61598.0,61597.0,0.32469]
[1726703814736,0.06,61605.0,61597.0,0.33869]
[1726703814972,0.16305367,61604.0,61598.0,0.97420785]
[1726703815405,0.16295367,61604.0,61597.0,0.33869]
[1726703815605,0.16295367,61604.0,61598.0,0.97420785]
[1726703815837,0.06,61613.0,61599.0,0.32468]
[1726703816074,0.16305367,61612.0,61599.0,0.32468]
[1726703816988,0.001,61604.0,61599.0,0.32468]
[1726703817425,0.16305367,61604.0,61599.0,0.32468]
[1726703817662,0.16305367,61604.0,61599.0,0.33868]
[1726703817903,0.16305367,61604.0,61599.0,0.32468]
[1726703818124,0.16305367,61603.0,61599.0,0.32468]
[1726703818337,0.16305367,61603.0,61599.0,0.33868]
[1726703820138,0.19305367,61603.0,61599.0,0.32468]
[1726703820351,0.16405367,61603.0,61601.0,0.24350254]
[1726703820630,0.16305367,61603.0,61599.0,0.32468]
[1726703820866,0.16295367,61603.0,61599.0,0.32468]
[1726703821089,0.16395367,61603.0,61600.0,0.24350254]
[1726703821318,0.16295367,61603.0,61601.0,0.32467]
[1726703821777,0.16295367,61603.0,61601.0,0.33867]
[1726703821778,0.16395367,61603.0,61601.0,0.33867]
[1726703822692,0.16395367,61603.0,61602.0,1.91457247]
[1726703822693,0.0009,61603.0,61602.0,1.91457247]
[1726703822949,0.24350254,61622.0,61610.0,0.324619]
[1726703823201,0.24350254,61622.0,61612.0,0.162305]
[1726703823202,0.40655621,61622.0,61612.0,0.162305]
[1726703823425,0.16305367,61622.0,61613.0,0.50361447]
[1726703823644,0.16305367,61622.0,61614.0,0.01671391]
[1726703823863,0.16305367,61622.0,61615.0,0.3246]
[1726703824076,0.16305367,61622.0,61616.0,0.01671391]
[1726703824314,0.16305367,61622.0,61617.0,0.34130391]
[1726703824530,0.16305367,61622.0,61618.0,0.01671391]
[1726703824751,0.16405367,61622.0,61619.0,0.01671391]
[1726703824960,0.16405367,61622.0,61620.0,0.01671391]
[1726703825191,0.16405367,61622.0,61621.0,0.01671391]
[1726703825402,0.16405367,61622.0,61621.0,0.34127391]
[1726703825613,0.001,61622.0,61621.0,0.34127391]
[1726703826048,0.001,61622.0,61621.0,0.33627391]
[1726703826484,0.06,61636.0,61621.0,0.66083791]
[1726703826692,0.16305367,61635.0,61624.0,0.324543]
[1726703826953,0.16305367,61635.0,61625.0,0.32454]
[1726703827420,0.16305367,61635.0,61628.0,0.162261]
[1726703827637,0.16305367,61635.0,61628.0,0.324525]
[1726703827856,0.16305367,61635.0,61628.0,0.324524]
[1726703828078,0.0299,61639.0,61626.0,0.97374934]
[1726703828079,0.0299,61649.0,61634.0,0.97374934]
[1726703828299,0.97374934,61644.0,61635.0,0.32449]
[1726703828526,0.0599,61646.0,61636.0,0.97374934]
[1726703828742,0.98137234,61665.0,61642.0,0.17817124]
[1726703828743,0.0599,61653.0,61642.0,0.17817124]
[1726703828964,0.0599,61653.0,61643.0,0.32445]
[1726703829181,0.16305367,61652.0,61643.0,0.486672]
[1726703829466,0.16305367,61652.0,61644.0,0.97374934]
[1726703829683,0.16305367,61652.0,61649.0,0.01594067]
[1726703829898,0.02543408,61658.0,61649.0,0.01594067]
[1726703829899,0.02543408,61658.0,61651.0,0.97374934]
[1726703830121,0.02543408,61658.0,61649.0,0.01594067]
[1726703830122,0.02543408,61658.0,61652.0,0.3244]
[1726703830368,0.222098,61653.0,61652.0,0.3244]
[1726703830572,0.22295367,61653.0,61652.0,0.3244]
[1726703830805,0.53734967,61653.0,61652.0,0.3244]
[1726703831032,1.02394367,61653.0,61652.0,0.30280906]
[1726703831230,1.02394367,61653.0,61640.0,0.04060592]
[1726703831231,0.212129,61641.0,61640.0,0.04060592]
[1726703831448,0.235134,61639.0,61638.0,0.01445526]
[1726703831675,0.0199,61621.0,61606.0,0.35819772]
[1726703831895,0.0199,61621.0,61620.0,0.97374934]
[1726703832112,0.0199,61621.0,61607.0,0.3246]
[1726703832113,0.0199,61620.0,61607.0,0.3246]
[1726703832342,0.0499,61623.0,61610.0,0.97374934]
[1726703832556,0.0499,61623.0,61611.0,0.32462]
[1726703832557,0.97374934,61621.0,61611.0,0.32462]
[1726703832768,0.0499,61618.0,61611.0,0.32462]
[1726703832980,0.0199,61614.0,61611.0,0.32462]
[1726703833221,0.16305367,61613.0,61611.0,0.32462]
[1726703834074,0.0499,61620.0,61611.0,0.33862]
[1726703834321,0.0498,61631.0,61612.0,0.97374934]
[1726703834567,0.97374934,61625.0,61621.0,0.16228]
[1726703834788,0.97374934,61625.0,61617.0,0.324584]
[1726703834789,0.97374934,61625.0,61622.0,0.486839]
[1726703835027,0.000824,61635.0,61622.0,0.486839]
[1726703835241,1.13680301,61632.0,61622.0,0.486839]
[1726703835449,1.13680301,61632.0,61622.0,0.32456]
[1726703836314,0.000824,61635.0,61625.0,0.1928]
[1726703836565,0.97374934,61634.0,61626.0,0.32454]
[1726703836984,0.97374934,61634.0,61628.0,0.162262]
[1726703837221,0.97374934,61634.0,61626.0,0.32454]
[1726703837222,0.000724,61635.0,61634.0,0.162248]
[1726703837452,0.000724,61635.0,61634.0,0.3245]
[1726703837693,0.000724,61635.0,61634.0,0.486748]
[1726703837901,0.000724,61635.0,61634.0,0.3245]
[1726703838111,0.000724,61635.0,61634.0,0.34149132]
[1726703839208,0.000724,61635.0,61634.0,1.43833132]
[1726703839437,0.000724,61635.0,61634.0,1.11383532]
[1726703839438,0.000624,61635.0,61634.0,1.11383532]
[1726703839699,0.000624,61635.0,61634.0,0.78933932]
[1726703839925,0.000624,61635.0,61634.0,1.11383532]
[1726703840149,0.000624,61635.0,61634.0,0.34149132]
[1726703840369,0.000624,61635.0,61634.0,0.34145343]
[1726703840572,0.000624,61635.0,61634.0,0.01683343]
[1726703841023,0.0783031,61683.0,61635.0,0.4943]
[1726703841243,19.21933978,61666.0,61665.0,1.318165]
[1726703841462,19.21933978,61666.0,61665.0,2.47782206]
[1726703841675,19.21933978,61666.0,61665.0,2.0765769]
[1726703841892,19.21933978,61666.0,61665.0,2.0382392]
[1726703842109,19.21923978,61666.0,61665.0,2.0682392]
[1726703842333,18.48643978,61666.0,61665.0,2.3769392]
[1726703842593,18.15303978,61666.0,61665.0,2.11793348]
[1726703842797,18.15303978,61666.0,61665.0,2.23645834]
[1726703843022,18.15303978,61666.0,61665.0,2.78959948]
[1726703843236,18.15283978,61666.0,61665.0,2.46526648]
[1726703843483,18.15273978,61666.0,61665.0,2.46170815]
[1726703843684,18.15273978,61666.0,61665.0,2.78604115]
[1726703843908,18.15273978,61666.0,61665.0,2.80064115]
[1726703844128,18.15273978,61666.0,61665.0,2.78338101]
[1726703844348,18.13228466,61666.0,61665.0,2.9097197]
[1726703844564,16.85427776,61666.0,61665.0,3.34679623]
[1726703844828,16.04275656,61666.0,61665.0,3.39934607]
[1726703845036,16.03993325,61666.0,61665.0,3.41334607]
[1726703845263,16.03993325,61666.0,61665.0,3.55430801]
[1726703845482,16.03993325,61666.0,61665.0,3.41534607]
[1726703845703,16.03993325,61666.0,61665.0,3.03434685]
[1726703845915,15.87776825,61666.0,61665.0,3.08688368]
[1726703846185,15.55308839,61666.0,61665.0,3.41121668]
[1726703846388,14.90375116,61666.0,61665.0,3.68301285]
[1726703846608,14.90375116,61666.0,61665.0,3.66901285]
[1726703846826,12.55841593,61666.0,61665.0,3.72341531]
[1726703847044,12.17864966,61666.0,61665.0,4.36242777]
[1726703847293,12.08666524,61666.0,61665.0,4.36242777]
[1726703847488,11.72409691,61666.0,61665.0,4.36342777]
[1726703847697,11.72409691,61666.0,61665.0,4.36242777]
[1726703847912,11.56193191,61666.0,61665.0,4.36242777]
[1726703848127,10.55538524,61666.0,61665.0,9.41342777]
[1726703848344,9.69599743,61666.0,61665.0,9.35858631]
[1726703848554,9.69599743,61666.0,61665.0,9.39384894]
[1726703848555,8.37620567,61666.0,61665.0,9.39384894]
[1726703848764,7.87691971,61666.0,61665.0,9.35858631]
[1726703848976,1.90444296,61666.0,61665.0,9.45207572]
[1726703849191,1.25499689,61666.0,61665.0,9.45207572]
[1726703849398,1.25499689,61666.0,61665.0,9.35858631]
[1726703849608,1.25499689,61666.0,61665.0,9.35758631]
[1726703849818,0.56985783,61666.0,61665.0,9.35758631]
[1726703850035,0.28742483,61666.0,61665.0,9.35858631]
[1726703850291,0.21367525,61676.0,61675.0,1.99624388]
[1726703850491,0.24820631,61720.0,61675.0,1.99624388]
[1726703850492,0.97283362,61687.0,61686.0,0.37938588]
[1726703850708,0.97283362,61687.0,61686.0,6.56259661]
[1726703850709,0.95589138,61687.0,61686.0,6.56259661]
[1726703850926,0.95135946,61694.0,61693.0,0.840462]
[1726703851170,0.95135946,61694.0,61693.0,1.75189067]
[1726703851372,0.97283362,61701.0,61694.0,1.26463]
[1726703851595,0.97283362,61701.0,61699.0,0.586231]
[1726703851827,0.97283362,61709.0,61699.0,1.72573006]
[1726703852035,0.97283362,61709.0,61699.0,1.91878373]
[1726703852266,0.00329001,61700.0,61699.0,1.91878373]
[1726703853260,0.00329001,61700.0,61699.0,2.46944861]
[1726703853261,0.00309001,61700.0,61699.0,2.46944861]
[1726703853496,0.004391,61717.0,61706.0,0.96545588]
[1726703853497,0.2475048,61717.0,61706.0,0.96545588]
[1726703853719,0.2475048,61717.0,61706.0,2.85582855]
[1726703853942,0.2475048,61717.0,61706.0,3.64990416]
[1726703854206,0.0031597,61717.0,61716.0,1.164227]
[1726703854473,0.0031597,61717.0,61716.0,2.63695473]
[1726703854474,0.0030597,61717.0,61716.0,2.63695473]
[1726703854687,0.0030597,61717.0,61716.0,3.01889493]
[1726703854920,0.24452895,61724.0,61723.0,1.264098]
[1726703855151,0.24452895,61724.0,61723.0,1.558128]
[1726703855387,0.00141515,61724.0,61723.0,2.10037355]
[1726703855603,0.00141515,61724.0,61723.0,1.75118167]
[1726703855833,0.00141515,61724.0,61723.0,1.72118167]
[1726703856077,0.00141515,61724.0,61723.0,2.66420967]
[1726703856295,1e-06,61728.0,61727.0,0.64117388]
[1726703856522,1e-06,61728.0,61727.0,4.85232794]
[1726703856780,6.1e-05,61733.0,61732.0,1.31409688]
[1726703857000,6.1e-05,61733.0,61732.0,2.78515261]
[1726703857258,0.0033606,61737.0,61736.0,0.58594]
[1726703857259,0.2449354,61737.0,61736.0,0.58594]
[1726703857499,0.2449354,61737.0,61736.0,1.23386]
[1726703857745,0.0018216,61737.0,61736.0,1.23386]
[1726703857963,0.0018216,61737.0,61736.0,1.42207755]
[1726703858210,0.0018216,61737.0,61736.0,1.39691367]
[1726703858443,0.0018216,61737.0,61736.0,0.9099]
[1726703858700,2.483e-05,61737.0,61736.0,5.34034995]
[1726703858952,0.2431138,61757.0,61743.0,1.28405776]
[1726703859185,0.2431138,61746.0,61743.0,2.64387843]
[1726703859395,0.2431138,61757.0,61743.0,2.69317456]
[1726703860437,0.2489324,61764.0,61743.0,3.04009756]
[1726703860438,0.2489324,61764.0,61743.0,3.05409756]
[1726703860650,0.7481687,61747.0,61746.0,1.50790876]
[1726703860880,0.7481687,61747.0,61746.0,2.26191349]
[1726703861122,0.7481687,61747.0,61746.0,4.77138049]
[1726703861379,0.7480687,61747.0,61746.0,4.46256449]
[1726703861604,0.7480687,61747.0,61746.0,3.33448949]
[1726703862288,0.74758231,61747.0,61746.0,3.27021049]
[1726703862504,0.74748231,61747.0,61746.0,3.31977137]
[1726703862723,0.74748231,61747.0,61746.0,3.34277137]
[1726703862941,0.74738231,61747.0,61746.0,3.34277137]
[1726703863173,0.74738231,61747.0,61746.0,3.31977137]
[1726703863446,0.61782231,61747.0,61746.0,3.66867837]
[1726703863663,0.58533231,61747.0,61746.0,3.66867837]
[1726703863883,0.58533231,61747.0,61746.0,2.19346961]
[1726703864100,0.58533231,61747.0,61746.0,1.97640349]
[1726703864542,0.58533231,61747.0,61746.0,1.49177173]
[1726703864774,0.58533231,61747.0,61746.0,1.47777173]
[1726703864993,0.58533231,61747.0,61746.0,1.49177173]
[1726703865694,0.58533231,61747.0,61746.0,1.00481106]
[1726703866354,0.58533231,61747.0,61746.0,0.97681106]
[1726703866817,0.58533231,61747.0,61746.0,1.09081106]
[1726703867067,0.58533231,61747.0,61746.0,0.49095106]
[1726703867289,0.58533231,61747.0,61746.0,1.31471806]
[1726703867733,0.58533231,61747.0,61746.0,0.50495106]
[1726703867953,0.58615531,61747.0,61746.0,0.50495106]
[1726703868187,0.58615531,61747.0,61746.0,0.66690406]
[1726703868650,0.58615531,61747.0,61746.0,0.59095106]
[1726703869122,0.58615531,61747.0,61746.0,0.75290406]
[1726703869569,0.58615531,61747.0,61746.0,1.07681106]
[1726703869995,0.58615531,61747.0,61746.0,1.09081106]
[1726703870223,0.58605531,61747.0,61746.0,1.09081106]
[1726703870682,0.57605531,61747.0,61746.0,0.78090406]
[1726703870913,0.57605531,61747.0,61746.0,1.07681106]
[1726703871382,0.57605531,61747.0,61700.0,0.36176486]
[1726703871383,0.00483612,61712.0,61700.0,0.36176486]
[1726703871618,0.00483612,61712.0,61691.0,0.04617348]
[1726703871619,0.02525208,61710.0,61701.0,0.7]
[1726703871859,0.02525208,61711.0,61701.0,0.32412]
[1726703872087,0.02525208,61704.0,61701.0,0.32412]
[1726703872308,0.312,61708.0,61677.0,0.164]
[1726703872309,0.02525208,61696.0,61677.0,0.164]
[1726703872774,0.02525208,61694.0,61680.0,0.32421]
[1726703872997,0.02525208,61694.0,61682.0,0.324242]
[1726703873221,0.02525208,61694.0,61683.0,0.32424]
[1726703873458,0.02515208,61694.0,61683.0,0.36882051]
[1726703873690,0.1874,61693.0,61676.0,0.04458051]
[1726703873935,0.1874,61693.0,61680.0,0.012]
[1726703873936,0.02515208,61688.0,61680.0,0.012]
[1726703874183,0.02515208,61692.0,61680.0,0.32422]
[1726703874432,0.02515208,61689.0,61680.0,0.32422]
[1726703874641,0.02515208,61692.0,61683.0,0.012]
[1726703874855,0.02515208,61692.0,61684.0,0.32423]
[1726703875070,0.02515208,61691.0,61684.0,0.32423]
[1726703875515,0.02515208,61691.0,61689.0,0.162102]
[1726703875764,0.02515208,61691.0,61690.0,0.3242]
[1726703876383,0.21235208,61693.0,61690.0,0.486299]
[1726703876596,0.324106,61709.0,61690.0,0.486299]
[1726703876597,0.02505208,61696.0,61694.0,0.162089]
[1726703876812,0.384032,61723.0,61690.0,0.3242]
[1726703876813,0.02505208,61697.0,61690.0,0.3242]
[1726703877034,0.02505208,61695.0,61690.0,0.3242]
[1726703877260,0.02505208,61697.0,61690.0,0.3242]
[1726703877489,0.02505208,61697.0,61695.0,0.162085]
[1726703877705,0.02505208,61700.0,61696.0,0.32417]
[1726703877923,0.02505208,61700.0,61673.0,0.03]
[1726703877924,0.02495208,61693.0,61691.0,0.162096]
[1726703878141,0.18800575,61693.0,61690.0,0.012]
[1726703878387,0.02595208,61697.0,61692.0,0.32419]
[1726703878608,0.02495208,61696.0,61695.0,0.162087]
[1726703878835,0.18900575,61697.0,61696.0,0.162085]
[1726703879052,0.18900575,61697.0,61696.0,0.486255]
[1726703879270,0.18900575,61697.0,61696.0,0.32417]
[1726703879496,0.18800575,61697.0,61696.0,0.32417]
[1726703879732,0.18900575,61697.0,61696.0,0.32417]
[1726703880209,0.18890575,61697.0,61696.0,0.32417]
[1726703880431,0.18990575,61697.0,61696.0,0.33617]
[1726703880650,0.18890575,61697.0,61696.0,0.33617]
[1726703880868,0.18890575,61697.0,61696.0,0.34817]
[1726703880869,0.18990575,61697.0,61696.0,0.34817]
[1726703881368,0.18780575,61697.0,61696.0,0.325814]
[1726703882051,0.34988775,61697.0,61696.0,0.325814]
[1726703882286,0.67405175,61697.0,61696.0,0.325814]
[1726703882502,0.67405175,61697.0,61675.0,0.424279]
[1726703882503,0.02495208,61687.0,61683.0,0.162118]
[1726703882725,0.02495208,61687.0,61686.0,0.24314533]
[1726703882957,0.02495208,61687.0,61684.0,0.32423]
[1726703883178,0.02485208,61687.0,61686.0,0.32342]
[1726703884086,0.18696008,61687.0,61686.0,0.32342]
[1726703884313,0.35001375,61687.0,61686.0,0.32342]
[1726703884755,0.67423075,61687.0,61686.0,0.32342]
[1726703885013,0.18790575,61687.0,61686.0,0.32342]
[1726703885731,0.18890575,61687.0,61686.0,0.33542]
[1726703886246,0.18790575,61687.0,61686.0,0.32342]
[1726703886480,0.18890575,61687.0,61686.0,0.33542]
[1726703886710,0.18890575,61687.0,61686.0,0.32342]
[1726703886936,0.18990575,61687.0,61686.0,0.33542]
[1726703887162,0.18890575,61687.0,61686.0,0.33542]
[1726703887661,0.18990575,61687.0,61686.0,0.34742]
[1726703888133,0.18980575,61687.0,61686.0,0.34742]
[1726703889327,0.002,61687.0,61686.0,0.509531]
[1726703889579,0.02475208,61690.0,61686.0,0.32342]
[1726703890318,0.02475208,61687.0,61686.0,0.32342]
[1726703890586,0.02475208,61687.0,61686.0,0.809753]
[1726703890825,0.24314533,61698.0,61686.0,0.809753]
[1726703890826,0.02465208,61691.0,61689.0,0.162101]
[1726703891055,0.18770575,61691.0,61690.0,0.4871]
[1726703891558,0.324124,61705.0,61690.0,0.4871]
[1726703891559,0.02465208,61697.0,61690.0,0.325]
[1726703891820,0.24314533,61706.0,61691.0,0.24314533]
[1726703891821,0.02445208,61699.0,61691.0,0.24314533]
[1726703892078,0.24314533,61713.0,61676.0,0.39527442]
[1726703892079,0.02445208,61701.0,61700.0,0.324149]
[1726703892334,0.02445208,61701.0,61700.0,0.487024]
[1726703892601,0.97252614,61705.0,61700.0,0.32495]
[1726703892839,0.16305367,61704.0,61700.0,0.32495]
[1726703893572,0.001,61701.0,61700.0,0.33895]
[1726703893810,0.16305367,61701.0,61700.0,0.32495]
[1726703894046,0.16305367,61701.0,61700.0,0.33895]
[1726703894552,0.16305367,61701.0,61700.0,0.32495]
[1726703894791,0.16305367,61701.0,61700.0,0.33895]
[1726703895045,0.16285875,61701.0,61700.0,0.33895]
[1726703895304,0.16275875,61701.0,61700.0,0.33895]
[1726703896034,0.16275875,61701.0,61700.0,0.32495]
[1726703896543,0.32582975,61701.0,61700.0,0.33895]
[1726703896784,0.16275875,61701.0,61700.0,0.32495]
[1726703897016,0.16375875,61701.0,61700.0,0.33895]
[1726703897270,0.16375875,61701.0,61700.0,0.32495]
[1726703897484,0.16475875,61701.0,61700.0,0.33895]
[1726703897733,0.16375875,61701.0,61700.0,0.33895]
[1726703897961,0.16365875,61701.0,61700.0,0.33895]
[1726703899670,0.16405367,61701.0,61700.0,0.35295]
[1726703899921,0.16405367,61701.0,61700.0,0.32495]
[1726703900401,0.16505367,61701.0,61700.0,0.33895]
[1726703900637,0.32712467,61701.0,61700.0,0.33895]
[1726703900870,0.64926767,61701.0,61700.0,0.33929748]
[1726703901100,0.64926767,61701.0,61700.0,0.35329748]
[1726703901101,0.65026767,61701.0,61700.0,0.35329748]
[1726703901346,0.99741067,61701.0,61700.0,0.33929748]
[1726703901629,1.32255367,61701.0,61700.0,0.35329748]
[1726703901898,1.32255367,61701.0,61700.0,0.33895]
[1726703902602,1.32255367,61701.0,61700.0,0.32286667]
[1726703902873,1.32055367,61701.0,61700.0,0.30886667]
[1726703903332,1.32155367,61701.0,61700.0,0.32286667]
[1726703903566,0.83349,61691.0,61690.0,0.001646]
[1726703903789,0.99654367,61691.0,61690.0,0.001646]
[1726703905000,0.16405367,61691.0,61690.0,0.015646]
[1726703905244,0.16405367,61691.0,61690.0,0.501947]
[1726703905245,0.0009,61691.0,61690.0,0.501947]
[1726703905495,0.0009,61691.0,61690.0,0.826148]
[1726703905743,0.0008,61691.0,61690.0,0.84253784]
[1726703906205,0.24310986,61700.0,61691.0,0.324195]
[1726703906432,0.16305367,61699.0,61692.0,0.0690144]
[1726703906698,0.16305367,61699.0,61693.0,0.0690144]
[1726703906928,0.16305367,61699.0,61694.0,0.0690144]
[1726703907152,0.16305367,61699.0,61695.0,0.0690144]
[1726703907399,0.16305367,61699.0,61696.0,0.01638984]
[1726703907644,0.16305367,61699.0,61697.0,0.01638984]
[1726703907901,0.16405367,61699.0,61698.0,0.01638984]
[1726703908141,0.16405367,61699.0,61694.0,0.01638984]
[1726703908377,0.16405367,61699.0,61695.0,0.23109362]
[1726703908599,0.16395367,61699.0,61696.0,0.06900762]
[1726703908827,0.16395367,61699.0,61697.0,0.06900263]
[1726703909053,0.16395367,61699.0,61694.0,0.01434375]
[1726703909054,0.16395367,61699.0,61698.0,0.23108163]
[1726703909279,0.16395367,61699.0,61698.0,0.03073359]
[1726703909537,0.16495367,61699.0,61698.0,0.03073359]
[1726703909760,0.16285367,61699.0,61698.0,0.24542423]
[1726703909984,0.16285367,61699.0,61698.0,0.08334523]
[1726703910489,0.16285367,61699.0,61698.0,0.24542423]
[1726703910715,0.16385367,61699.0,61698.0,0.24542423]
[1726703910946,0.16285367,61699.0,61698.0,0.24542423]
[1726703911222,0.16285367,61699.0,61681.0,0.324243]
[1726703911223,0.97251825,61659.0,61644.0,0.0058186]
[1726703911482,0.023,61649.0,61644.0,0.0058186]
[1726703911964,0.023,61670.0,61645.0,0.0522716]
[1726703912198,0.162156,61669.0,61646.0,0.324432]
[1726703912426,0.97251825,61666.0,61647.0,0.44180752]
[1726703912646,0.16305367,61665.0,61648.0,0.0522716]
[1726703912877,0.023,61672.0,61649.0,2.204032]
[1726703912878,0.97251825,61672.0,61649.0,2.204032]
[1726703913105,0.03,61694.0,61651.0,0.03]
[1726703913106,0.97251825,61671.0,61651.0,0.03]
[1726703913356,0.97241825,61671.0,61670.0,0.485659]
[1726703913802,0.1621,61691.0,61675.0,0.162139]
[1726703914023,0.97241825,61686.0,61674.0,0.16214]
[1726703914286,0.16305367,61685.0,61675.0,0.162137]
[1726703914515,0.16305367,61685.0,61677.0,0.162134]
[1726703914736,0.16305367,61685.0,61674.0,0.324282]
[1726703914951,0.16305367,61685.0,61674.0,0.46782861]
[1726703915385,0.16305367,61685.0,61679.0,0.162128]
[1726703915626,0.16305367,61685.0,61677.0,0.324268]
[1726703915852,0.16305367,61685.0,61682.0,0.162121]
[1726703916080,0.16305367,61685.0,61683.0,0.486358]
[1726703916318,0.16295367,61685.0,61683.0,0.32424]
[1726703916546,0.16395367,61685.0,61683.0,0.32424]
[1726703917024,0.16495367,61685.0,61683.0,0.32424]
[1726703917243,0.16395367,61685.0,61683.0,0.32424]
[1726703917891,0.16495367,61685.0,61683.0,0.33724]
[1726703918326,0.16475861,61685.0,61683.0,0.33724]
[1726703920186,0.16275861,61685.0,61683.0,0.32424]
[1726703920404,0.16375861,61685.0,61683.0,0.33724]